bitfinex/quotes_ETHUSD_20240828
["timestamp","ask_amount","ask_price","bid_price","bid_amount"]
[1724863855015,4.378965,2512.0,2511.4,2.50321928]
[1724863855312,6.43638,2513.0,2510.8,2.4236]
[1724863855623,3.9816,2511.6,2510.8,2.4236]
[1724863855772,0.7957,2512.9,2510.8,2.4236]
[1724863855773,3.98046,2512.3,2510.8,2.4236]
[1724863855974,3.98182,2511.5,2510.8,2.4236]
[1724863856185,3.98182,2511.5,2510.8,6.40637]
[1724863856431,3.98146,2511.7,2510.3,3.98354]
[1724863856432,3.98138,2511.7,2510.3,3.98354]
[1724863856666,3.98243,2511.1,2510.9,0.04606658]
[1724863856874,3.98243,2511.1,2510.2,2.2988]
[1724863856875,3.98232,2511.1,2510.4,3.98341]
[1724863857013,3.98232,2511.1,2511.0,0.0459695]
[1724863857214,3.98232,2511.1,2510.2,6.28252]
[1724863857420,3.98232,2511.1,2511.0,0.0459695]
[1724863857667,3.98188,2511.4,2510.3,0.07966016]
[1724863857872,4.42722249,2512.4,2511.0,4.0283095]
[1724863857873,3.98125,2511.8,2511.0,4.0283095]
[1724863858159,3.98091,2512.0,2511.1,4.06194214]
[1724863858376,3.98091,2512.0,2511.2,0.0796282]
[1724863858377,4.777064,2512.0,2511.2,0.0796282]
[1724863858518,0.796154,2512.0,2511.2,0.0796282]
[1724863858723,3.98033,2512.4,2511.7,3.98123]
[1724863858918,3.98043,2512.3,2511.8,0.07961513]
[1724863859118,3.97892,2513.3,2511.8,0.07961513]
[1724863859119,3.97977,2512.8,2511.9,3.98094]
[1724863859360,3.97977,2512.8,2512.0,0.07960434]
[1724863859566,4.376962,2513.2,2512.0,0.1245984]
[1724863859776,3.97872,2513.4,2512.1,2.2554]
[1724863859920,0.41019826,2513.4,2512.2,0.31758405]
[1724863860272,0.1232626,2513.5,2513.0,3.97921]
[1724863860577,0.1232626,2513.5,2512.4,3.98019]
[1724863860578,0.1232626,2513.5,2513.4,7.95734]
[1724863860734,0.1232626,2513.5,2513.4,8.0368915]
[1724863860934,3.97629,2515.0,2513.4,8.0368915]
[1724863860935,3.97592,2515.2,2514.4,3.97697]
[1724863861276,3.97624,2515.0,2514.5,0.04200478]
[1724863861499,0.397592,2515.2,2514.5,0.04200478]
[1724863861624,3.97609,2515.1,2514.5,0.12153035]
[1724863862073,3.97572,2515.3,2514.5,0.07952557]
[1724863862282,3.97495,2515.8,2514.6,0.04490141]
[1724863862283,0.45859916,2515.5,2514.6,0.04490141]
[1724863862432,3.97676,2514.7,2514.0,3.97765]
[1724863862797,3.97588,2515.2,2514.7,0.04479771]
[1724863862953,3.97588,2515.2,2514.3,3.97711]
[1724863862954,3.97615,2515.0,2514.3,3.97711]
[1724863863127,3.97522,2515.6,2514.8,0.04469401]
[1724863863322,0.05,2517.5,2514.4,0.0795216]
[1724863863323,4.0978026,2516.1,2515.3,2.3966]
[1724863863528,0.1232626,2516.1,2516.0,3.97456]
[1724863863771,0.1232626,2516.1,2516.0,14.32028]
[1724863864109,0.45477691,2517.0,2516.4,3.97387]
[1724863864381,3.97279,2517.2,2516.1,3.97437]
[1724863864534,3.97127,2518.1,2516.5,0.0462349]
[1724863864535,7.94748,2516.6,2516.5,0.0462349]
[1724863864865,3.97449,2516.1,2515.4,3.97545]
[1724863865070,3.97556,2515.4,2514.6,3.97675]
[1724863865277,0.48173274,2516.0,2514.9,3.97622]
[1724863865278,0.397449,2516.0,2514.9,3.97622]
[1724863865568,0.397449,2516.0,2512.5,2.0]
[1724863865569,3.97393,2516.4,2515.0,2.86098203]
[1724863865729,3.97383,2516.5,2515.4,3.97543]
[1724863865929,3.97383,2516.5,2515.0,2.7815]
[1724863865930,3.9741,2516.3,2515.5,0.0794871]
[1724863866247,3.97503,2515.7,2515.0,2.7815]
[1724863866430,3.97536,2515.5,2515.0,2.3808]
[1724863866769,3.97565,2515.4,2515.0,2.3808]
[1724863866970,3.97565,2515.4,2514.3,6.38436]
[1724863867183,3.97565,2515.4,2514.4,3.97693]
[1724863867184,3.97585,2515.2,2514.4,3.97693]
[1724863867326,3.97585,2515.2,2514.3,2.4072]
[1724863867327,0.79515,2515.2,2514.3,2.4072]
[1724863867527,0.50721066,2515.1,2513.7,4.37875]
[1724863867727,3.97699,2514.5,2513.7,3.97817]
[1724863867955,3.97699,2514.5,2513.6,2.4072]
[1724863867956,3.97699,2514.5,2513.6,6.38541]
[1724863868231,3.97561,2515.4,2513.6,2.4072]
[1724863868232,3.97757,2514.1,2513.6,2.4072]
[1724863868435,3.97658,2514.8,2513.0,6.38648]
[1724863868436,3.97793,2513.9,2513.0,6.38648]
[1724863868766,3.97793,2513.9,2512.4,3.98023]
[1724863868767,3.97917,2513.1,2512.4,6.34203]
[1724863869083,3.9798,2512.7,2512.0,3.98088]
[1724863869232,0.790815,2513.1,2512.1,0.07959892]
[1724863869233,3.97922,2513.1,2512.1,0.07959892]
[1724863869432,3.97949,2512.9,2512.1,3.98071]
[1724863869872,4.4694098,2513.1,2512.3,3.98038]
[1724863870051,3.0,2513.8,2512.0,3.98088]
[1724863870052,3.97948,2512.9,2512.0,3.98088]
[1724863870239,3.98039,2512.4,2511.7,2.3619]
[1724863870437,3.98039,2512.4,2511.2,3.98211]
[1724863870438,3.98101,2512.0,2511.2,3.98211]
[1724863870676,3.98061,2512.2,2511.2,3.98211]
[1724863870986,3.0,2512.7,2511.9,3.98104]
[1724863870987,3.97985,2512.7,2511.9,3.98104]
[1724863871135,3.97968,2512.8,2512.0,4.06047528]
[1724863871452,3.97947,2512.9,2512.2,3.98057]
[1724863871784,3.97868,2513.4,2512.3,0.07959701]
[1724863871968,0.397658,2514.7,2512.5,3.98001]
[1724863872137,3.97814,2513.8,2513.1,3.97909]
[1724863872338,3.9782,2513.7,2512.8,3.97961]
[1724863872679,4.376094,2513.7,2512.3,2.3619]
[1724863872844,3.97958,2512.9,2511.9,3.98098]
[1724863873052,3.97958,2512.9,2511.6,2.3619]
[1724863873053,0.48508161,2513.6,2512.4,0.04279487]
[1724863873232,3.97907,2513.2,2512.5,3.98009]
[1724863873591,3.9782,2513.7,2511.6,2.3619]
[1724863873592,3.0,2513.6,2511.6,2.3619]
[1724863873734,3.0,2513.6,2512.6,0.04260095]
[1724863873735,3.97978,2512.7,2512.6,0.04260095]
[1724863873936,3.97978,2512.7,2510.8,2.3619]
[1724863873937,0.47472208,2512.7,2510.8,2.3619]
[1724863874160,3.98144,2511.7,2510.9,3.98259]
[1724863874362,3.98156,2511.6,2510.9,4.02541696]
[1724863874594,3.98144,2511.7,2510.9,4.02541696]
[1724863874887,0.796253,2511.7,2510.9,0.04282696]
[1724863875032,3.98247,2511.0,2510.9,0.04282696]
[1724863875236,3.98213,2511.3,2510.0,2.3619]
[1724863875498,5.83842208,2511.9,2510.0,2.3619]
[1724863875499,7.9621,2511.9,2510.9,0.04282696]
[1724863875713,3.98217,2511.2,2510.6,0.07964593]
[1724863875999,3.98186,2511.4,2511.0,0.04272988]
[1724863876171,3.79621,2511.8,2511.0,0.04272988]
[1724863876172,3.98137,2511.7,2511.0,0.04272988]
[1724863876368,3.9813,2511.8,2510.5,3.98316]
[1724863876599,0.39813,2511.7,2511.1,0.04567801]
[1724863876768,3.98044,2512.3,2510.6,4.06270752]
[1724863876972,3.9809,2512.0,2510.9,3.98263]
[1724863877167,3.39809,2511.9,2510.7,4.02595114]
[1724863877373,3.98136,2511.7,2511.0,0.04272988]
[1724863877568,3.98101,2512.0,2511.0,0.04272988]
[1724863877569,7.96462,2511.1,2511.0,0.04272988]
[1724863877801,7.96462,2511.1,2510.3,0.4007]
[1724863877802,3.0,2511.9,2510.4,0.07965972]
[1724863877998,3.9814,2511.7,2510.4,0.07965972]
[1724863878204,4.2811,2511.9,2510.5,0.04321534]
[1724863878497,3.98078,2512.1,2511.4,3.98179]
[1724863878719,3.97995,2512.6,2511.6,3.98149]
[1724863878860,3.97937,2513.0,2511.7,3.98136]
[1724863879059,3.97971,2512.8,2512.0,3.98086]
[1724863879475,3.9801,2512.5,2512.1,0.04463843]
[1724863879676,3.97979,2512.7,2511.9,3.98101]
[1724863879897,3.97963,2512.8,2512.2,0.04453452]
[1724863880101,3.98002,2512.6,2511.5,0.4007]
[1724863880304,3.98002,2512.6,2510.6,3.9831]
[1724863880305,3.98068,2512.2,2511.4,3.98181]
[1724863880605,3.97962,2512.8,2511.1,3.98229]
[1724863880606,3.98125,2511.8,2511.1,3.98229]
[1724863880920,3.9809,2512.0,2511.1,3.98229]
[1724863881208,2.718162,2512.7,2511.0,2.754]
[1724863881209,3.98064,2512.2,2511.0,2.754]
[1724863881516,3.98098,2512.0,2511.1,4.10793943]
[1724863881661,3.98132,2511.8,2511.1,4.02831849]
[1724863882006,3.98098,2512.0,2511.2,3.98215]
[1724863882217,0.398064,2512.2,2511.1,0.12567378]
[1724863882218,0.398064,2512.2,2511.6,3.9815]
[1724863882504,3.98105,2511.9,2511.7,0.04309196]
[1724863882662,3.98105,2511.9,2511.0,6.33572]
[1724863882663,3.98142,2511.7,2511.0,6.33565]
[1724863882863,4.777667,2511.7,2511.1,3.98229]
[1724863883102,3.98077,2512.1,2511.2,3.98211]
[1724863883257,3.98077,2512.1,2511.3,0.07962829]
[1724863883658,0.3,2512.4,2511.3,0.48032829]
[1724863883886,3.0,2512.4,2511.8,3.98109]
[1724863884092,3.97949,2512.9,2512.1,3.9807]
[1724863884319,3.97922,2513.1,2512.4,3.98013]
[1724863884320,4.67483487,2513.1,2512.4,3.98013]
[1724863884620,3.97937,2513.0,2511.8,3.98107]
[1724863884782,3.9804,2512.4,2511.6,3.98139]
[1724863884968,3.9804,2512.4,2511.5,2.3506]
[1724863884969,3.97971,2512.8,2511.5,2.3506]
[1724863885167,0.97137223,2513.0,2511.5,2.3506]
[1724863885168,3.97942,2513.0,2512.3,3.9803]
[1724863885367,3.97942,2513.0,2512.4,0.07959719]
[1724863885563,3.97942,2513.0,2511.5,2.3506]
[1724863885564,3.97873,2513.4,2511.8,0.4007]
[1724863885765,3.97885,2513.3,2512.6,3.97992]
[1724863886022,3.97814,2513.8,2513.1,3.97914]
[1724863886316,3.97814,2513.8,2512.5,3.98008]
[1724863886317,3.97878,2513.4,2512.4,2.3506]
[1724863886481,3.97945,2513.0,2512.4,2.3506]
[1724863886804,0.50388874,2513.8,2512.4,2.3506]
[1724863886805,4.05800726,2513.6,2512.6,3.97987]
[1724863887109,3.97947,2512.9,2512.4,2.7513]
[1724863887407,3.97951,2512.9,2512.4,0.4007]
[1724863887829,3.98005,2512.6,2512.0,3.98087]
[1724863888024,3.98005,2512.6,2511.9,2.7513]
[1724863888025,3.97951,2512.9,2511.9,2.7513]
[1724863888323,3.97949,2512.9,2512.3,3.98031]
[1724863888502,3.97992,2512.7,2512.0,7.96155]
[1724863888663,3.97992,2512.7,2512.0,3.98073]
[1724863888664,3.97995,2512.6,2512.0,3.98073]
[1724863888869,0.80394673,2512.6,2511.9,2.7513]
[1724863889194,3.97905,2513.2,2511.4,6.296]
[1724863889195,3.98068,2512.2,2511.4,6.296]
[1724863889400,0.07959726,2512.5,2511.6,3.98139]
[1724863889401,3.98042,2512.3,2511.6,3.98139]
[1724863889627,3.0,2513.1,2511.4,6.296]
[1724863889628,3.97749,2514.2,2512.3,3.98028]
[1724863889782,3.97749,2514.2,2511.8,2.4525]
[1724863889783,3.9788,2513.4,2512.7,3.97968]
[1724863889990,3.97894,2513.3,2512.7,3.97968]
[1724863890322,3.97894,2513.3,2512.1,3.98061]
[1724863890323,3.97959,2512.9,2512.1,3.98061]
[1724863890484,3.98022,2512.5,2511.8,2.4525]
[1724863890820,3.97957,2512.9,2512.1,3.98072]
[1724863891137,0.397799,2513.8,2512.3,2.3154]
[1724863891425,3.97832,2513.7,2513.2,2.3154]
[1724863891632,3.97759,2514.1,2513.3,0.07956799]
[1724863891914,3.97729,2514.3,2513.6,3.9782]
[1724863892110,10.75301,2514.5,2514.1,3.97754]
[1724863892111,6.16,2514.5,2514.1,3.97754]
[1724863892408,6.16,2514.5,2514.2,0.07953664]
[1724863892607,0.07959726,2515.7,2514.2,0.12946499]
[1724863892608,3.9763,2514.9,2514.2,0.12946499]
[1724863892911,3.97647,2514.8,2514.2,0.04992835]
[1724863893085,0.07959726,2514.7,2514.2,0.04992835]
[1724863893286,0.07959726,2514.7,2513.5,2.2927]
[1724863893287,3.97715,2514.4,2513.6,0.4007]
[1724863893486,3.97704,2514.5,2514.3,0.05433526]
[1724863893685,3.97704,2514.5,2513.7,0.4007]
[1724863893686,3.97709,2514.4,2513.7,0.4007]
[1724863893887,0.55181934,2514.3,2513.7,0.4007]
[1724863894095,9.16,2515.0,2513.8,0.13455004]
[1724863894298,3.97687,2514.6,2514.0,3.97771]
[1724863894778,0.916,2514.9,2513.5,2.2927]
[1724863894779,3.9774,2514.2,2513.5,2.2927]
[1724863895114,3.97651,2514.8,2514.1,3.97745]
[1724863895283,3.97651,2514.8,2514.2,0.07954041]
[1724863895484,10.1362,2515.0,2514.2,0.07954041]
[1724863895485,6.16,2515.0,2514.2,0.07954041]
[1724863895720,4.989757,2515.0,2514.3,3.97713]
[1724863896018,6.16,2515.1,2514.5,2.3536]
[1724863896185,6.16,2515.1,2514.6,0.07952146]
[1724863896390,6.16,2515.2,2514.6,4.05626218]
[1724863896735,6.16,2515.2,2514.0,3.97764]
[1724863896736,3.9765,2514.8,2514.0,0.4007]
[1724863897067,3.9765,2514.8,2513.4,2.3536]
[1724863897068,3.97699,2514.5,2513.4,2.3536]
[1724863897320,3.97768,2514.1,2513.4,2.3536]
[1724863897623,3.97656,2514.8,2513.9,3.97774]
[1724863897911,3.97656,2514.8,2513.5,4.29335379]
[1724863897912,3.97736,2514.3,2513.5,4.21376]
[1724863898117,3.97809,2513.8,2513.4,2.3536]
[1724863898284,0.07959726,2514.2,2513.3,0.4007]
[1724863898489,3.9783,2513.7,2513.3,0.4007]
[1724863899014,3.97736,2514.3,2512.8,0.4007]
[1724863899015,0.07959726,2513.8,2512.8,0.4007]
[1724863899223,3.97918,2513.1,2512.8,0.4007]
[1724863899372,3.97954,2512.9,2512.2,2.4836]
[1724863899572,3.97843,2513.6,2512.2,2.4836]
[1724863899573,0.07959726,2512.8,2512.2,2.4836]
[1724863899773,3.97998,2512.6,2511.6,2.4836]
[1724863900088,3.98038,2512.4,2511.7,3.98133]
[1724863900431,0.49640704,2512.8,2511.9,3.981]
[1724863900719,3.97988,2512.7,2512.1,3.98072]
[1724863900886,0.41680978,2512.8,2512.1,3.98072]
[1724863901086,0.41680978,2512.8,2512.3,3.98033]
[1724863901425,0.41680978,2512.8,2512.1,0.4007]
[1724863901773,3.97928,2513.1,2512.4,3.98011]
[1724863901922,3.97928,2513.1,2512.5,3.98008]
[1724863902091,3.97928,2513.1,2512.5,4.05966474]
[1724863902299,3.9792,2513.1,2512.6,0.07958474]
[1724863902486,3.97947,2512.9,2512.6,0.05948022]
[1724863902681,0.07959726,2512.8,2511.6,6.46501]
[1724863902931,12.42436999,2512.8,2512.7,0.05338677]
[1724863903112,12.42436999,2512.8,2511.6,2.8843]
[1724863903113,3.98102,2512.0,2511.6,2.8843]
[1724863903316,3.98119,2511.9,2511.6,2.4836]
[1724863903513,3.98121,2511.8,2511.7,0.05484149]
[1724863903881,0.41694838,2512.2,2511.6,0.4007]
[1724863904129,0.41694838,2512.2,2511.7,0.05484149]
[1724863904328,0.41694838,2512.2,2511.1,2.2976]
[1724863904329,3.98052,2512.3,2511.3,0.07962252]
[1724863904479,3.98052,2512.3,2511.7,3.98136]
[1724863904811,3.98014,2512.5,2511.8,3.98105]
[1724863905017,3.0,2512.9,2511.8,3.98105]
[1724863905018,3.97958,2512.9,2512.2,3.98052]
[1724863905217,3.97994,2512.6,2512.0,6.27843]
[1724863905419,7.96054,2512.4,2512.3,0.05472932]
[1724863905632,7.96054,2512.4,2511.5,2.4863]
[1724863905633,3.98107,2511.9,2511.5,2.4863]
[1724863905830,3.98149,2511.7,2511.3,0.4007]
[1724863906040,3.98149,2511.7,2511.6,0.05574782]
[1724863906214,3.98149,2511.7,2511.0,2.4863]
[1724863906215,3.98203,2511.3,2511.0,2.4863]
[1724863906415,3.98203,2511.3,2510.6,3.98298]
[1724863906854,3.98203,2511.3,2510.6,7.96599]
[1724863907150,3.98186,2511.4,2510.7,4.06251388]
[1724863907313,3.98153,2511.6,2510.8,3.98266]
[1724863907517,3.98123,2511.8,2511.2,3.98202]
[1724863907852,3.98114,2511.9,2511.3,0.07962746]
[1724863907998,4.06079726,2511.8,2511.0,3.98235]
[1724863908348,4.06079726,2511.8,2510.5,2.2556]
[1724863908349,3.98207,2511.3,2510.8,0.4007]
[1724863908500,3.98207,2511.3,2511.1,0.06288432]
[1724863908699,3.98207,2511.3,2510.8,0.4007]
[1724863908902,3.98207,2511.3,2511.2,0.06272255]
[1724863909145,3.98168,2511.5,2510.8,4.38348]
[1724863909307,3.98093,2512.0,2511.2,0.06272255]
[1724863909513,3.98093,2512.0,2510.8,0.4007]
[1724863909514,3.982,2511.3,2510.8,0.4007]
[1724863909712,3.98221,2511.2,2510.8,0.4007]
[1724863909947,3.98221,2511.2,2510.5,6.23878]
[1724863909948,3.98263,2510.9,2510.5,2.2556]
[1724863910156,3.98263,2510.9,2509.1,3.98544]
[1724863910157,3.98263,2510.9,2510.1,3.98377]
[1724863910314,3.98237,2511.1,2510.5,3.98316]
[1724863910514,3.98201,2511.3,2510.6,0.07964999]
[1724863910713,3.98249,2511.0,2510.3,3.98343]
[1724863910927,3.9823,2511.2,2510.5,3.98326]
[1724863911129,3.98214,2511.3,2510.6,3.983]
[1724863911331,3.98214,2511.3,2510.7,0.07965026]
[1724863911533,7.96429,2511.3,2510.7,0.07965026]
[1724863911701,4.778569,2511.3,2510.7,0.07965026]
[1724863911899,3.98242,2511.1,2510.5,3.98316]
[1724863912328,3.98242,2511.1,2510.5,3.98315]
[1724863912555,3.98242,2511.1,2510.6,0.0796503]
[1724863912702,3.9825,2511.0,2510.3,3.98347]
[1724863912904,4.06209726,2511.0,2510.2,0.4007]
[1724863913116,3.9825,2511.0,2510.3,3.98343]
[1724863913315,3.9825,2511.0,2510.4,3.98328]
[1724863913528,3.98223,2511.2,2510.5,0.07965603]
[1724863913725,3.98223,2511.2,2510.5,4.06290603]
[1724863913726,3.98232,2511.1,2510.5,4.06290603]
[1724863913957,0.398093,2511.9,2511.1,3.98231]
[1724863914191,4.39598474,2513.2,2510.1,4.38458]
[1724863914192,4.39598474,2513.2,2511.3,2.4052]
[1724863914316,4.39598474,2513.2,2512.0,3.98075]
[1724863914317,3.97973,2512.8,2512.0,3.98075]
[1724863914511,3.97973,2512.8,2512.1,0.07960459]
[1724863914512,3.97994,2512.6,2512.1,0.07960459]
[1724863914716,3.97994,2512.6,2511.8,4.38187]
[1724863914916,0.07959726,2512.5,2511.8,3.98117]
[1724863915163,0.07959726,2512.5,2511.6,3.98147]
[1724863915468,3.97954,2512.9,2512.2,3.98046]
[1724863915615,4.05924726,2512.8,2511.8,3.98113]
[1724863915821,3.97937,2513.0,2511.9,0.07961032]
[1724863916042,3.97947,2512.9,2512.2,3.98043]
[1724863916264,3.97947,2512.9,2512.0,3.98085]
[1724863916265,3.97964,2512.8,2512.1,3.98068]
[1724863916416,3.97937,2513.0,2512.2,0.07960047]
[1724863916616,3.97937,2513.0,2512.3,3.9804]
[1724863917040,4.39599474,2513.2,2512.4,3.98024]
[1724863917238,4.39599474,2513.2,2512.5,0.07959279]
[1724863917474,1.25441321,2513.2,2512.5,0.07959279]
[1724863917617,4.05875726,2513.1,2512.3,0.07959507]
[1724863917816,3.97976,2512.8,2512.1,2.2697]
[1724863918030,4.4270002,2513.0,2512.2,0.07960397]
[1724863918231,3.97943,2513.0,2512.2,0.07960397]
[1724863918537,0.07959726,2512.9,2512.1,6.25038]
[1724863918721,0.41694474,2513.2,2512.1,6.25038]
[1724863918916,3.97963,2512.8,2512.2,0.06131059]
[1724863919118,3.97985,2512.7,2512.2,0.06131059]
[1724863919422,3.97946,2512.9,2512.2,4.06007844]
[1724863919648,3.97946,2512.9,2512.3,0.06114897]
[1724863919960,0.41688051,2512.8,2512.3,0.06114897]
[1724863920172,0.41688051,2512.8,2512.3,3.98037]
[1724863920322,0.41688051,2512.8,2512.4,0.06098735]
[1724863920522,0.41688051,2512.8,2512.2,0.07960255]
[1724863920822,0.41688051,2512.8,2512.0,3.98074]
[1724863921068,0.41688051,2512.8,2512.5,3.97994]
[1724863921235,0.41688051,2512.8,2512.4,2.3322]
[1724863921437,0.41688051,2512.8,2512.5,0.06082575]
[1724863921635,3.97846,2513.6,2512.5,0.06082575]
[1724863921636,6.16,2514.3,2513.2,2.4602]
[1724863921841,3.97651,2514.8,2513.7,3.97811]
[1724863921842,4.05622726,2514.7,2513.7,3.97811]
[1724863922050,4.05622726,2514.7,2514.0,3.97761]
[1724863922051,4.374281,2514.7,2514.0,3.97761]
[1724863922254,6.16,2514.8,2514.3,3.9771]
[1724863922578,0.07959726,2514.7,2513.6,0.4007]
[1724863922723,0.07959726,2514.7,2513.8,3.97801]
[1724863922724,3.97707,2514.5,2513.8,3.97801]
[1724863922920,0.07959726,2514.4,2513.7,3.97809]
[1724863923119,0.397707,2514.4,2513.9,3.97777]
[1724863923355,3.97703,2514.5,2513.9,3.97777]
[1724863923867,0.07959726,2514.6,2514.0,3.9777]
[1724863924178,6.16,2514.8,2513.8,0.397814]
[1724863924367,6.16,2514.8,2513.7,3.97815]
[1724863924368,6.16,2514.9,2514.6,3.97674]
[1724863924521,6.16,2514.9,2513.7,0.4007]
[1724863924522,6.16,2515.1,2514.9,3.97619]
[1724863924724,3.9751,2515.7,2515.0,3.97602]
[1724863924725,6.16,2515.2,2515.0,3.97602]
[1724863924951,3.97474,2515.9,2515.2,3.97582]
[1724863924952,6.16,2515.3,2515.2,3.97582]
[1724863925266,0.397474,2515.9,2515.5,3.97523]
[1724863925433,6.16,2515.9,2515.5,3.97523]
[1724863925825,6.16,2515.9,2514.5,9.85930067]
[1724863925826,0.07959726,2515.8,2514.9,3.97621]
[1724863926028,3.97531,2515.6,2514.9,3.97621]
[1724863926224,3.97495,2515.8,2515.0,0.07950696]
[1724863926425,3.97495,2515.8,2514.8,3.97638]
[1724863926426,3.97531,2515.6,2514.8,3.97638]
[1724863926667,3.97531,2515.6,2515.0,3.97604]
[1724863926864,3.97531,2515.6,2514.8,3.97638]
[1724863926865,3.97531,2515.6,2514.9,3.97629]
[1724863927176,1.10105199,2515.7,2514.5,2.2591]
[1724863927177,0.9857561,2515.5,2514.5,2.2591]
[1724863927338,3.97584,2515.2,2514.6,0.07950702]
[1724863927537,3.97541,2515.5,2514.8,3.97637]
[1724863927746,3.97552,2515.4,2514.9,0.07951646]
[1724863927944,4.87260047,2515.5,2514.8,4.05595756]
[1724863928151,4.99652473,2515.7,2515.0,3.97604]
[1724863928356,4.99652473,2515.7,2515.0,3.97608]
[1724863928638,0.07959726,2515.6,2514.5,2.2591]
[1724863928854,3.97614,2515.0,2514.5,2.2591]
[1724863929363,3.9762,2515.0,2514.5,2.2591]
[1724863929544,3.9762,2515.0,2514.1,2.3606]
[1724863929545,0.07959726,2514.9,2514.1,2.3606]
[1724863929747,0.07959726,2514.9,2513.0,3.97928]
[1724863929748,3.97693,2514.5,2513.9,4.37845]
[1724863929954,3.97693,2514.5,2513.9,0.4007]
[1724863930158,3.97693,2514.5,2513.9,4.37844]
[1724863930337,0.07959726,2514.4,2513.9,0.4007]
[1724863930679,4.772289,2514.5,2513.9,0.4007]
[1724863930837,3.97773,2514.0,2513.3,8.35818]
[1724863931041,3.97773,2514.0,2513.4,3.97864]
[1724863931437,4.05697726,2514.3,2513.5,3.9784]
[1724863931675,0.07959726,2514.2,2513.3,0.4007]
[1724863931886,0.07959726,2514.2,2512.2,3.98045]
[1724863931887,3.97838,2513.6,2512.9,3.97931]
[1724863932090,3.97925,2513.1,2512.7,2.4474]
[1724863932283,3.97967,2512.8,2512.1,3.98062]
[1724863932603,3.0,2513.5,2512.0,2.4474]
[1724863932604,3.9804,2512.4,2512.0,2.4474]
[1724863932898,3.98011,2512.5,2511.7,3.98129]
[1724863933082,4.05955726,2512.6,2511.7,3.98129]
[1724863933264,3.97962,2512.9,2512.0,3.98086]
[1724863933466,3.97917,2513.1,2512.1,0.07959663]
[1724863933682,0.23082,2513.5,2512.0,0.4007]
[1724863933890,3.97914,2513.1,2512.1,3.98059]
[1724863934201,3.97931,2513.0,2512.1,4.06029355]
[1724863934400,3.97966,2512.8,2512.1,4.06029355]
[1724863934699,3.97946,2512.9,2512.2,3.98056]
[1724863934995,3.97946,2512.9,2512.3,4.05999951]
[1724863935681,3.97946,2512.9,2512.3,0.07959951]
[1724863935863,3.97915,2513.1,2512.3,4.05998951]
[1724863936207,3.97947,2512.9,2512.2,0.0795995]
[1724863936349,3.97962,2512.8,2512.2,0.0795995]
[1724863936554,3.97947,2512.9,2512.2,0.0795995]
[1724863936750,3.97964,2512.8,2512.1,3.9807]
[1724863936956,3.97964,2512.8,2511.9,3.981]
[1724863937202,0.4377085,2513.0,2512.1,3.9806]
[1724863937203,4.4170385,2513.0,2512.1,3.9806]
[1724863937494,3.97893,2513.3,2512.4,3.98019]
[1724863937655,3.97893,2513.3,2512.5,0.07959094]
[1724863937995,6.35828,2514.1,2512.6,3.97987]
[1724863938293,3.97942,2513.0,2512.3,2.2999]
[1724863938496,3.97942,2513.0,2512.4,4.05982597]
[1724863938701,3.97873,2513.4,2512.4,0.07959597]
[1724863938859,3.97838,2513.6,2512.8,3.9796]
[1724863939055,3.97851,2513.5,2512.8,3.9796]
[1724863939256,5.229678,2514.0,2513.2,3.97886]
[1724863939463,4.42095904,2514.6,2513.6,3.97832]
[1724863939464,10.13747,2514.2,2513.6,3.97832]
[1724863939681,3.97775,2514.0,2513.4,3.97856]
[1724863939994,6.16,2514.2,2513.8,3.97803]
[1724863940194,10.13684,2514.6,2513.9,0.07954804]
[1724863940495,3.97739,2514.3,2513.6,3.97824]
[1724863940699,0.07959726,2514.5,2513.2,4.37966]
[1724863940700,0.07959726,2514.2,2513.4,3.9786]
[1724863940866,8.03462726,2514.2,2513.5,3.97849]
[1724863941051,3.97787,2514.0,2513.4,7.95717]
[1724863941251,4.86051999,2514.2,2513.5,3.97841]
[1724863941469,3.97713,2514.4,2513.8,3.97803]
[1724863941669,3.97782,2514.0,2513.4,3.9786]
[1724863941864,3.97782,2514.0,2513.4,3.97856]
[1724863942098,3.97815,2513.8,2513.2,3.9789]
[1724863942262,4.89269431,2514.3,2513.2,3.9789]
[1724863942263,3.97781,2514.0,2513.3,4.05836679]
[1724863942464,0.07959726,2513.9,2513.3,4.05836679]
[1724863942797,3.97837,2513.6,2513.0,6.67813]
[1724863942968,3.97805,2513.8,2513.0,6.67813]
[1724863942969,4.05789726,2513.7,2513.0,4.37823]
[1724863943172,3.29026431,2514.3,2511.7,3.98135]
[1724863943173,3.98016,2512.5,2511.7,3.98135]
[1724863943388,6.39025033,2512.4,2511.7,3.98125]
[1724863943690,0.07959726,2512.3,2511.9,3.98096]
[1724863943871,3.97965,2512.8,2512.1,3.98068]
[1724863943872,3.97972,2512.8,2512.1,3.98068]
[1724863944396,3.97972,2512.8,2512.1,3.98064]
[1724863944600,3.97906,2513.2,2512.5,3.97996]
[1724863944771,3.97885,2513.3,2512.7,3.97976]
[1724863944959,3.97885,2513.3,2512.5,3.98001]
[1724863944960,3.9791,2513.2,2512.5,3.97999]
[1724863945161,8.03713726,2513.4,2512.7,3.97964]
[1724863945404,3.97843,2513.6,2512.9,3.97944]
[1724863945710,3.97843,2513.6,2512.4,3.9802]
[1724863946006,3.97843,2513.6,2513.0,3.97929]
[1724863946304,0.07959726,2513.5,2512.9,3.97934]
[1724863946464,0.07959726,2513.5,2512.7,3.97966]
[1724863946659,3.9788,2513.4,2512.7,3.97966]
[1724863946883,0.07959726,2513.3,2512.7,3.97966]
[1724863947088,3.97904,2513.2,2512.5,3.98]
[1724863947398,3.97848,2513.6,2512.9,3.97932]
[1724863947558,3.97847,2513.6,2513.0,3.9793]
[1724863947995,0.07959726,2513.5,2512.6,3.97986]
[1724863948195,3.97941,2513.0,2511.9,6.84215]